[Event "*** Titled Tuesday Blitz"]
[Site "Chess.com"]
[Date "2018.08.07"]
[Round "5"]
[White "Caisachess"]
[Black "cool4chess"]
[Result "1-0"]
[WhiteElo "2246"]
[BlackElo "2104"]
[TimeControl "180+2"]
[EndTime "14:04:02 PDT"]
[Termination "Caisachess won by checkmate"]

1. e4 {[%clk 0:03:00.2]} 1... c5 {[%clk 0:02:59.8]} 2. c3 {[%clk 0:03:01]} 2...
d5 {[%clk 0:03:00.4]} 3. exd5 {[%clk 0:03:01.8]} 3... Qxd5 {[%clk 0:03:02.3]} 4.
d4 {[%clk 0:03:03.3]} 4... Nc6 {[%clk 0:03:03.6]} 5. Nf3 {[%clk 0:03:04.7]} 5...
Bg4 {[%clk 0:03:04.8]} 6. Be2 {[%clk 0:03:04.6]} 6... cxd4 {[%clk 0:03:05.9]} 7.
cxd4 {[%clk 0:03:05.3]} 7... e6 {[%clk 0:03:07.3]} 8. Nc3 {[%clk 0:03:05.9]}
8... Qa5 {[%clk 0:03:08.5]} 9. O-O {[%clk 0:03:06.6]} 9... Bb4 {[%clk
0:03:09.8]} 10. Be3 {[%clk 0:02:58.6]} 10... Nge7 {[%clk 0:03:08.6]} 11. Qb3
{[%clk 0:02:58.3]} 11... O-O {[%clk 0:03:06.3]} 12. a3 {[%clk 0:02:59.1]} 12...
Bd6 {[%clk 0:02:56.7]} 13. Rfd1 {[%clk 0:02:53.5]} 13... a6 {[%clk 0:02:44.1]}
14. d5 {[%clk 0:02:51.6]} 14... exd5 {[%clk 0:02:38.5]} 15. Bb6 {[%clk
0:02:48.8]} 15... d4 {[%clk 0:01:33.7]} 16. Bxa5 {[%clk 0:02:48]} 16... Nxa5
{[%clk 0:01:35.6]} 17. Qb6 {[%clk 0:02:42.6]} 17... dxc3 {[%clk 0:01:33.9]} 18.
Qxd6 {[%clk 0:02:43.3]} 18... cxb2 {[%clk 0:01:34.9]} 19. Rab1 {[%clk
0:02:43.8]} 19... Nc8 {[%clk 0:01:18.9]} 20. Qf4 {[%clk 0:02:40.4]} 20... Be6
{[%clk 0:01:05.7]} 21. Rxb2 {[%clk 0:02:37.6]} 21... Nb3 {[%clk 0:01:07.1]} 22.
Nd4 {[%clk 0:02:34.4]} 22... Nxd4 {[%clk 0:01:06.4]} 23. Qxd4 {[%clk 0:02:35.2]}
23... Ne7 {[%clk 0:01:04.7]} 24. Rxb7 {[%clk 0:02:33.7]} 24... Nc6 {[%clk
0:01:04.1]} 25. Qb6 {[%clk 0:02:31.2]} 25... Ne5 {[%clk 0:01:01.4]} 26. Bxa6
{[%clk 0:02:23.5]} 26... Rfc8 {[%clk 0:00:35.3]} 27. Rc7 {[%clk 0:02:16.1]}
27... Rcb8 {[%clk 0:00:28.9]} 28. Rb7 {[%clk 0:02:02.9]} 28... Rc8 {[%clk
0:00:29]} 29. a4 {[%clk 0:01:54.6]} 29... h6 {[%clk 0:00:25.6]} 30. Qd6 {[%clk
0:01:48.6]} 30... Nc6 {[%clk 0:00:21.8]} 31. Bb5 {[%clk 0:01:46.5]} 31... Na5
{[%clk 0:00:20.8]} 32. Rc7 {[%clk 0:01:43.9]} 32... Rcb8 {[%clk 0:00:21.3]} 33.
Qe7 {[%clk 0:01:34.6]} 33... Rf8 {[%clk 0:00:15]} 34. f4 {[%clk 0:01:35.3]}
34... Nb3 {[%clk 0:00:15.3]} 35. Bc4 {[%clk 0:01:35]} 35... Bxc4 {[%clk
0:00:12.6]} 36. Rxc4 {[%clk 0:01:36]} 36... Na5 {[%clk 0:00:14.5]} 37. Rc7
{[%clk 0:01:34]} 37... Nb3 {[%clk 0:00:14.4]} 38. Rdd7 {[%clk 0:01:34.6]} 38...
Na5 {[%clk 0:00:16.3]} 39. Qe4 {[%clk 0:01:31.5]} 39... Rab8 {[%clk 0:00:16.2]}
40. Qd5 {[%clk 0:01:32.2]} 40... Rb1+ {[%clk 0:00:16]} 41. Kf2 {[%clk
0:01:33.4]} 41... Rb2+ {[%clk 0:00:17.2]} 42. Kg3 {[%clk 0:01:33.4]} 42... Rb3+
{[%clk 0:00:18.2]} 43. Kg4 {[%clk 0:01:33.6]} 43... Rb2 {[%clk 0:00:14.7]} 44.
Rxf7 {[%clk 0:01:33.3]} 44... Rxg2+ {[%clk 0:00:14.5]} 45. Qxg2 {[%clk
0:01:33.7]} 45... Rxf7 {[%clk 0:00:16.4]} 46. Qd5 {[%clk 0:01:34.9]} 46... Kh7
{[%clk 0:00:17.2]} 47. Qxf7 {[%clk 0:01:35.7]} 47... h5+ {[%clk 0:00:19.1]} 48.
Kxh5 {[%clk 0:01:36.4]} 48... Nc6 {[%clk 0:00:18]} 49. Qxg7# {[%clk 0:01:37.5]}
1-0

[Event "*** Titled Tuesday Blitz"]
[Site "Chess.com"]
[Date "2018.08.07"]
[Round "5"]
[White "FearlessKing64"]
[Black "inegrepus"]
[Result "0-1"]
[WhiteElo "2235"]
[BlackElo "2187"]
[TimeControl "180+2"]
[EndTime "14:04:11 PDT"]
[Termination "inegrepus won by resignation"]

1. e4 {[%clk 0:03:01.9]} 1... e6 {[%clk 0:03:00.1]} 2. d4 {[%clk 0:03:02]} 2...
d5 {[%clk 0:03:01.8]} 3. Nc3 {[%clk 0:03:03.4]} 3... dxe4 {[%clk 0:03:02.9]} 4.
Nxe4 {[%clk 0:03:04]} 4... Nd7 {[%clk 0:03:04.7]} 5. Bd3 {[%clk 0:03:02.3]} 5...
Ngf6 {[%clk 0:03:06.1]} 6. Nf3 {[%clk 0:03:02.5]} 6... c5 {[%clk 0:03:06.8]} 7.
Ng3 {[%clk 0:02:56]} 7... cxd4 {[%clk 0:03:07.2]} 8. Nxd4 {[%clk 0:02:56.7]}
8... Bc5 {[%clk 0:03:07.8]} 9. Nf3 {[%clk 0:02:44.9]} 9... O-O {[%clk
0:03:08.3]} 10. O-O {[%clk 0:02:41.7]} 10... b6 {[%clk 0:03:09.5]} 11. Qe2
{[%clk 0:02:42.4]} 11... Bb7 {[%clk 0:03:10.4]} 12. Bg5 {[%clk 0:02:42.6]} 12...
h6 {[%clk 0:03:10.8]} 13. Bh4 {[%clk 0:02:42.9]} 13... g5 {[%clk 0:03:06.7]} 14.
Nxg5 {[%clk 0:02:42.4]} 14... hxg5 {[%clk 0:03:08.6]} 15. Bxg5 {[%clk
0:02:43.2]} 15... Be7 {[%clk 0:03:04.5]} 16. Nh5 {[%clk 0:02:43.1]} 16... Nxh5
{[%clk 0:02:44.4]} 17. Qxh5 {[%clk 0:02:37.1]} 17... f5 {[%clk 0:02:37.6]} 18.
Qg6+ {[%clk 0:02:29]} 18... Kh8 {[%clk 0:02:38.8]} 19. Qh6+ {[%clk 0:02:29.5]}
19... Kg8 {[%clk 0:02:39.7]} 20. Qxe6+ {[%clk 0:02:29.7]} 20... Kh8 {[%clk
0:02:34.1]} 21. Qh6+ {[%clk 0:02:25]} 21... Kg8 {[%clk 0:02:34]} 22. Bc4+ {[%clk
0:02:25.3]} 22... Rf7 {[%clk 0:02:28.8]} 23. Qg6+ {[%clk 0:02:22.3]} 23... Kh8
{[%clk 0:02:29.5]} 24. Bxe7 {[%clk 0:02:04.6]} 24... Rxe7 {[%clk 0:02:27.9]} 25.
Bf7 {[%clk 0:01:55.9]} 25... Qf8 {[%clk 0:01:43]} 26. Qh5+ {[%clk 0:01:55.4]}
26... Kg7 {[%clk 0:01:43.5]} 27. Bg6 {[%clk 0:01:55.4]} 27... Nf6 {[%clk
0:01:34.1]} 28. Qxf5 {[%clk 0:01:52]} 28... Be4 {[%clk 0:01:08.5]} 29. Qg5
{[%clk 0:01:37.6]} 29... Bxg6 {[%clk 0:01:08.5]} 30. f4 {[%clk 0:01:37.2]} 30...
Ne4 {[%clk 0:01:02.9]} 31. Qd5 {[%clk 0:01:20.4]} 31... Rd8 {[%clk 0:01:01.3]}
32. Qb3 {[%clk 0:01:15.8]} 32... Red7 {[%clk 0:00:46.6]} 33. f5 {[%clk
0:01:02.6]} 33... Qc5+ {[%clk 0:00:46.8]} 34. Kh1 {[%clk 0:00:59.7]} 34... Nf2+
{[%clk 0:00:47.3]} 35. Rxf2 {[%clk 0:00:58.6]} 35... Qxf2 {[%clk 0:00:49.2]} 36.
Qc3+ {[%clk 0:00:44.2]} 36... Kg8 {[%clk 0:00:45.2]} 37. h3 {[%clk 0:00:33.1]}
37... Rd1+ {[%clk 0:00:43.1]} 38. Rxd1 {[%clk 0:00:33.6]} 38... Rxd1+ {[%clk
0:00:44.3]} 39. Kh2 {[%clk 0:00:35.5]} 39... Qf4+ {[%clk 0:00:43.9]} 0-1

[Event "*** Titled Tuesday Blitz"]
[Site "Chess.com"]
[Date "2018.08.07"]
[Round "5"]
[White "Cryptochess"]
[Black "GadimbayliA"]
[Result "0-1"]
[WhiteElo "2503"]
[BlackElo "2694"]
[TimeControl "180+2"]
[EndTime "14:04:26 PDT"]
[Termination "GadimbayliA won by resignation"]

1. e4 {[%clk 0:03:01.9]} 1... e6 {[%clk 0:03:00.5]} 2. d4 {[%clk 0:02:59.1]}
2... d5 {[%clk 0:03:00.4]} 3. Nd2 {[%clk 0:02:59.5]} 3... c5 {[%clk 0:02:59.6]}
4. exd5 {[%clk 0:02:59.7]} 4... Qxd5 {[%clk 0:03:00.9]} 5. Ngf3 {[%clk
0:03:00.3]} 5... cxd4 {[%clk 0:03:02.3]} 6. Bc4 {[%clk 0:03:01.7]} 6... Qd7
{[%clk 0:03:02.4]} 7. O-O {[%clk 0:03:02.5]} 7... Nc6 {[%clk 0:03:01.4]} 8. Nb3
{[%clk 0:03:02.5]} 8... a6 {[%clk 0:03:02.4]} 9. Nbxd4 {[%clk 0:03:01.3]} 9...
Nxd4 {[%clk 0:03:03]} 10. Nxd4 {[%clk 0:03:02.9]} 10... Qc7 {[%clk 0:03:04.5]}
11. Bb3 {[%clk 0:02:47.1]} 11... Bd6 {[%clk 0:03:04.3]} 12. h3 {[%clk
0:02:45.6]} 12... Ne7 {[%clk 0:03:00.2]} 13. Re1 {[%clk 0:02:44.6]} 13... O-O
{[%clk 0:03:00.6]} 14. Bg5 {[%clk 0:02:44.7]} 14... Ng6 {[%clk 0:02:58.6]} 15.
c3 {[%clk 0:02:40.6]} 15... b5 {[%clk 0:02:58.4]} 16. Qh5 {[%clk 0:02:36.8]}
16... Bb7 {[%clk 0:02:34.6]} 17. Rad1 {[%clk 0:02:21.5]} 17... Rfe8 {[%clk
0:02:23.5]} 18. Rd3 {[%clk 0:01:54.9]} 18... Nf4 {[%clk 0:02:11]} 19. Bxf4
{[%clk 0:01:44.3]} 19... Bxf4 {[%clk 0:02:12.9]} 20. Qg4 {[%clk 0:01:40.2]}
20... Be5 {[%clk 0:02:00.2]} 21. Rde3 {[%clk 0:00:58.3]} 21... Bxd4 {[%clk
0:01:50.6]} 22. cxd4 {[%clk 0:00:55]} 22... Rad8 {[%clk 0:01:48.4]} 23. Rg3
{[%clk 0:00:56.2]} 23... g6 {[%clk 0:01:46]} 24. h4 {[%clk 0:00:56.4]} 24... h5
{[%clk 0:01:43.8]} 25. Qg5 {[%clk 0:00:42.5]} 25... Bd5 {[%clk 0:01:14]} 26. Rc1
{[%clk 0:00:38.8]} 26... Qe7 {[%clk 0:01:09.2]} 27. Qxh5 {[%clk 0:00:32.2]}
27... Bxb3 {[%clk 0:01:06.2]} 28. axb3 {[%clk 0:00:34.1]} 28... Rxd4 {[%clk
0:01:01.8]} 29. Qe5 {[%clk 0:00:35.2]} 29... Rxh4 {[%clk 0:00:59.8]} 30. Rc7
{[%clk 0:00:35.2]} 30... Qf8 {[%clk 0:00:52.3]} 31. Qf6 {[%clk 0:00:32.6]} 31...
Rh6 {[%clk 0:00:43.8]} 32. Rf3 {[%clk 0:00:32.7]} 32... Rh7 {[%clk 0:00:39.8]}
33. Ra7 {[%clk 0:00:23.4]} 33... Qc5 {[%clk 0:00:36.8]} 34. Rc3 {[%clk
0:00:06.7]} 34... Qxa7 {[%clk 0:00:35.6]} 35. Rg3 {[%clk 0:00:07.8]} 35... Qd7
{[%clk 0:00:32]} 36. Rxg6+ {[%clk 0:00:05.8]} 36... fxg6 {[%clk 0:00:31.7]} 37.
Qxg6+ {[%clk 0:00:07.7]} 0-1

[Event "*** Titled Tuesday Blitz"]
[Site "Chess.com"]
[Date "2018.08.07"]
[Round "5"]
[White "evgenysharapov"]
[Black "Alopekos"]
[Result "1-0"]
[WhiteElo "2349"]
[BlackElo "2463"]
[TimeControl "180+2"]
[EndTime "14:04:26 PDT"]
[Termination "evgenysharapov won by resignation"]

1. e4 {[%clk 0:03:01.9]} 1... e5 {[%clk 0:03:01.1]} 2. Nf3 {[%clk 0:03:02.2]}
2... Nc6 {[%clk 0:03:02.7]} 3. Bb5 {[%clk 0:03:02.4]} 3... a6 {[%clk 0:03:04.3]}
4. Ba4 {[%clk 0:03:02.8]} 4... Nf6 {[%clk 0:03:05.7]} 5. O-O {[%clk 0:03:02.9]}
5... b5 {[%clk 0:03:07.3]} 6. Bb3 {[%clk 0:03:03.5]} 6... Bc5 {[%clk 0:03:09.2]}
7. Nxe5 {[%clk 0:02:53.3]} 7... Nxe5 {[%clk 0:03:09.5]} 8. d4 {[%clk 0:02:53.8]}
8... Bxd4 {[%clk 0:03:11]} 9. Qxd4 {[%clk 0:02:53.9]} 9... d6 {[%clk 0:03:12.9]}
10. c3 {[%clk 0:02:50.4]} 10... c5 {[%clk 0:03:13.1]} 11. Qe3 {[%clk 0:02:46.6]}
11... c4 {[%clk 0:02:57.4]} 12. Bc2 {[%clk 0:02:46.8]} 12... O-O {[%clk
0:02:58.7]} 13. Nd2 {[%clk 0:02:44.2]} 13... Re8 {[%clk 0:02:51.1]} 14. Nf3
{[%clk 0:02:39.2]} 14... Nxf3+ {[%clk 0:01:25.9]} 15. Qxf3 {[%clk 0:02:38.5]}
15... Bb7 {[%clk 0:01:26.9]} 16. Bg5 {[%clk 0:02:34.1]} 16... h6 {[%clk
0:01:26.4]} 17. Bxf6 {[%clk 0:02:33.3]} 17... Qxf6 {[%clk 0:01:28.3]} 18. Qxf6
{[%clk 0:02:33.4]} 18... gxf6 {[%clk 0:01:30.2]} 19. f3 {[%clk 0:02:20.5]} 19...
f5 {[%clk 0:01:21.2]} 20. exf5 {[%clk 0:02:18.2]} 20... Re2 {[%clk 0:01:22.5]}
21. Rf2 {[%clk 0:02:18.5]} 21... Rae8 {[%clk 0:01:23.8]} 22. Kf1 {[%clk
0:02:16.5]} 22... Rxf2+ {[%clk 0:01:17.8]} 23. Kxf2 {[%clk 0:02:16.5]} 23... Kg7
{[%clk 0:01:18.8]} 24. Rd1 {[%clk 0:02:14]} 24... d5 {[%clk 0:01:17.9]} 25. g4
{[%clk 0:02:13.6]} 25... Kf6 {[%clk 0:01:18.1]} 26. f4 {[%clk 0:02:13.7]} 26...
Rg8 {[%clk 0:01:12.4]} 27. Rg1 {[%clk 0:02:12.6]} 27... a5 {[%clk 0:01:05.8]}
28. h4 {[%clk 0:02:10.9]} 28... Ke7 {[%clk 0:01:04.9]} 29. g5 {[%clk 0:02:11.4]}
29... h5 {[%clk 0:01:03.2]} 30. f6+ {[%clk 0:02:09.7]} 30... Kd6 {[%clk
0:01:02.7]} 31. Re1 {[%clk 0:02:03.3]} 31... Bc8 {[%clk 0:00:51.6]} 32. Re7
{[%clk 0:02:01.4]} 32... Rf8 {[%clk 0:00:50.3]} 33. Bd1 {[%clk 0:01:02.7]} 33...
b4 {[%clk 0:00:49.1]} 34. Bxh5 {[%clk 0:01:01.3]} 34... d4 {[%clk 0:00:41.2]}
35. Bxf7 {[%clk 0:00:57.2]} 35... dxc3 {[%clk 0:00:36.4]} 36. bxc3 {[%clk
0:00:57.5]} 36... bxc3 {[%clk 0:00:35.9]} 37. Bg6 {[%clk 0:00:57.7]} 37... Bg4
{[%clk 0:00:23.6]} 38. h5 {[%clk 0:00:53.8]} 38... Bxh5 {[%clk 0:00:24.2]} 39.
Bxh5 {[%clk 0:00:54.2]} 39... c2 {[%clk 0:00:24.8]} 40. Re1 {[%clk 0:00:54.6]}
40... Rh8 {[%clk 0:00:23.1]} 41. f7 {[%clk 0:00:55]} 1-0

[Event "*** Titled Tuesday Blitz"]
[Site "Chess.com"]
[Date "2018.08.07"]
[Round "5"]
[White "GameOverBro"]
[Black "2Tilted"]
[Result "0-1"]
[WhiteElo "2373"]
[BlackElo "2338"]
[TimeControl "180+2"]
[EndTime "14:04:36 PDT"]
[Termination "2Tilted won by resignation"]

1. e4 {[%clk 0:03:01.9]} 1... c5 {[%clk 0:02:55]} 2. Ne2 {[%clk 0:02:55.6]} 2...
Nc6 {[%clk 0:02:52.8]} 3. Nbc3 {[%clk 0:02:52.3]} 3... e6 {[%clk 0:02:52.2]} 4.
g3 {[%clk 0:02:53.7]} 4... g6 {[%clk 0:02:52.4]} 5. d4 {[%clk 0:02:54.4]} 5...
cxd4 {[%clk 0:02:44.9]} 6. Nxd4 {[%clk 0:02:56.3]} 6... a6 {[%clk 0:02:42.4]} 7.
Be3 {[%clk 0:02:39.3]} 7... Qc7 {[%clk 0:02:24.6]} 8. Bg2 {[%clk 0:02:37.1]}
8... d6 {[%clk 0:02:14.7]} 9. O-O {[%clk 0:02:36]} 9... Bd7 {[%clk 0:02:15.2]}
10. a4 {[%clk 0:02:35.9]} 10... Ne5 {[%clk 0:02:10.6]} 11. h3 {[%clk 0:02:28]}
11... b6 {[%clk 0:01:58.3]} 12. Qe2 {[%clk 0:02:16.5]} 12... Ne7 {[%clk
0:01:53]} 13. f4 {[%clk 0:02:12.6]} 13... Nc4 {[%clk 0:01:53.8]} 14. Bf2 {[%clk
0:01:48.5]} 14... Ra7 {[%clk 0:01:38.9]} 15. b3 {[%clk 0:01:46.5]} 15... Na5
{[%clk 0:01:39.3]} 16. Qd2 {[%clk 0:01:45.1]} 16... Bg7 {[%clk 0:01:34.2]} 17.
Nce2 {[%clk 0:01:42.7]} 17... O-O {[%clk 0:01:32.6]} 18. Rab1 {[%clk 0:01:34]}
18... Rc8 {[%clk 0:01:26.6]} 19. c4 {[%clk 0:01:35.2]} 19... e5 {[%clk
0:00:52.7]} 20. Nf3 {[%clk 0:01:27.7]} 20... Nac6 {[%clk 0:00:52.2]} 21. Rfd1
{[%clk 0:01:22.6]} 21... exf4 {[%clk 0:00:23.8]} 22. gxf4 {[%clk 0:01:24.5]}
22... Bh6 {[%clk 0:00:23.4]} 23. Qxd6 {[%clk 0:01:20.3]} 23... Qxd6 {[%clk
0:00:24.3]} 24. Rxd6 {[%clk 0:01:21.9]} 24... Rb7 {[%clk 0:00:25.8]} 25. Rbd1
{[%clk 0:01:18.8]} 25... Be8 {[%clk 0:00:26.6]} 26. Ng5 {[%clk 0:01:08.3]} 26...
b5 {[%clk 0:00:26]} 27. axb5 {[%clk 0:01:08.3]} 27... axb5 {[%clk 0:00:27.2]}
28. c5 {[%clk 0:01:08.7]} 28... Bf8 {[%clk 0:00:27.3]} 29. e5 {[%clk 0:01:04.7]}
29... h6 {[%clk 0:00:28]} 30. Ne4 {[%clk 0:01:05.2]} 30... Ra7 {[%clk
0:00:28.8]} 31. Nf6+ {[%clk 0:01:05.9]} 31... Kg7 {[%clk 0:00:29.5]} 32. Nd4
{[%clk 0:00:56.3]} 32... Nxd4 {[%clk 0:00:29.6]} 33. Bxd4 {[%clk 0:00:57.6]}
33... Nf5 {[%clk 0:00:30.7]} 34. Nxe8+ {[%clk 0:00:49.2]} 34... Rxe8 {[%clk
0:00:29.8]} 35. c6 {[%clk 0:00:44.5]} 35... Nxd4 {[%clk 0:00:29.9]} 36. R1xd4
{[%clk 0:00:43.8]} 36... Rc8 {[%clk 0:00:28.9]} 37. Rd7 {[%clk 0:00:37.5]} 37...
Bc5 {[%clk 0:00:29.6]} 38. Rxa7 {[%clk 0:00:33.3]} 38... Bxa7 {[%clk 0:00:31.5]}
39. Kf2 {[%clk 0:00:21.6]} 39... Bxd4+ {[%clk 0:00:30.7]} 40. Ke2 {[%clk
0:00:23.5]} 40... g5 {[%clk 0:00:30.6]} 41. Kd3 {[%clk 0:00:24.4]} 41... Ba1
{[%clk 0:00:31.4]} 42. fxg5 {[%clk 0:00:24.5]} 42... hxg5 {[%clk 0:00:32.3]} 43.
Ke4 {[%clk 0:00:25.7]} 43... Rxc6 {[%clk 0:00:33]} 44. Kf5 {[%clk 0:00:27.2]}
44... Re6 {[%clk 0:00:32.7]} 45. Bd5 {[%clk 0:00:27.2]} 45... Rxe5+ {[%clk
0:00:33.6]} 0-1

[Event "*** Titled Tuesday Blitz"]
[Site "Chess.com"]
[Date "2018.08.07"]
[Round "5"]
[White "senecacrane"]
[Black "tgpgoat"]
[Result "1-0"]
[WhiteElo "2130"]
[BlackElo "1990"]
[TimeControl "180+2"]
[EndTime "14:04:36 PDT"]
[Termination "senecacrane won on time"]

1. d4 {[%clk 0:03:01.9]} 1... Nf6 {[%clk 0:02:58.1]} 2. c4 {[%clk 0:03:02.3]}
2... c5 {[%clk 0:02:58.9]} 3. d5 {[%clk 0:03:03.1]} 3... b5 {[%clk 0:02:59.7]}
4. cxb5 {[%clk 0:03:04.1]} 4... a6 {[%clk 0:02:49.6]} 5. bxa6 {[%clk 0:03:04.6]}
5... g6 {[%clk 0:02:46.1]} 6. Nc3 {[%clk 0:03:06.5]} 6... Bxa6 {[%clk
0:02:46.7]} 7. g3 {[%clk 0:03:07.6]} 7... Bg7 {[%clk 0:02:46.9]} 8. Bg2 {[%clk
0:03:08.7]} 8... O-O {[%clk 0:02:47.6]} 9. d6 {[%clk 0:03:02.9]} 9... Ra7 {[%clk
0:02:46]} 10. Nf3 {[%clk 0:02:52.6]} 10... Ne8 {[%clk 0:02:39.5]} 11. dxe7
{[%clk 0:02:53.1]} 11... Qxe7 {[%clk 0:02:41.3]} 12. Be3 {[%clk 0:02:37.1]}
12... Nc7 {[%clk 0:02:33.7]} 13. O-O {[%clk 0:02:36.2]} 13... Bb7 {[%clk
0:02:33.1]} 14. Bf4 {[%clk 0:02:28.1]} 14... d5 {[%clk 0:02:24.2]} 15. Bxc7
{[%clk 0:02:21.3]} 15... Qxc7 {[%clk 0:02:26.1]} 16. Nxd5 {[%clk 0:02:21.6]}
16... Qd6 {[%clk 0:02:15]} 17. Nc3 {[%clk 0:02:15.3]} 17... Qb6 {[%clk
0:02:15.1]} 18. Qc2 {[%clk 0:02:03.3]} 18... Nc6 {[%clk 0:02:04.9]} 19. e3
{[%clk 0:01:50.7]} 19... Nb4 {[%clk 0:02:04.7]} 20. Qb3 {[%clk 0:01:49.8]} 20...
Ba6 {[%clk 0:01:50.4]} 21. Rfc1 {[%clk 0:01:07.8]} 21... c4 {[%clk 0:01:44.7]}
22. Qd1 {[%clk 0:01:02]} 22... Nd3 {[%clk 0:01:39.8]} 23. Rc2 {[%clk 0:00:54.3]}
23... Rb8 {[%clk 0:01:27.1]} 24. Nd5 {[%clk 0:00:34.6]} 24... Qc5 {[%clk
0:01:15.1]} 25. Nd2 {[%clk 0:00:30.9]} 25... Rxb2 {[%clk 0:01:12.8]} 26. Rxb2
{[%clk 0:00:19.8]} 26... Nxb2 {[%clk 0:01:03.7]} 27. Qc2 {[%clk 0:00:20.7]}
27... c3 {[%clk 0:00:54]} 28. Ne4 {[%clk 0:00:21.5]} 28... Qxd5 {[%clk
0:00:52.2]} 29. Nf6+ {[%clk 0:00:22.6]} 29... Bxf6 {[%clk 0:00:53]} 30. Bxd5
{[%clk 0:00:23]} 30... Bd3 {[%clk 0:00:53.4]} 31. Qb3 {[%clk 0:00:22.5]} 31...
c2 {[%clk 0:00:50.2]} 32. Qb8+ {[%clk 0:00:22]} 32... Kg7 {[%clk 0:00:46.8]} 33.
Qxa7 {[%clk 0:00:23.9]} 33... Bc4 {[%clk 0:00:44.7]} 34. Qxf7+ {[%clk
0:00:24.2]} 1-0

[Event "*** Titled Tuesday Blitz"]
[Site "Chess.com"]
[Date "2018.08.07"]
[Round "5"]
[White "jk13"]
[Black "gmjlh"]
[Result "1-0"]
[WhiteElo "2536"]
[BlackElo "2737"]
[TimeControl "180+2"]
[EndTime "14:04:37 PDT"]
[Termination "jk13 won on time"]

1. e4 {[%clk 0:03:01.9]} 1... c6 {[%clk 0:02:57.5]} 2. Nc3 {[%clk 0:03:02.6]}
2... d5 {[%clk 0:02:58.1]} 3. Nf3 {[%clk 0:03:04.5]} 3... dxe4 {[%clk
0:02:58.6]} 4. Nxe4 {[%clk 0:03:05.3]} 4... Nf6 {[%clk 0:03:00.1]} 5. Qe2 {[%clk
0:03:06.4]} 5... Nxe4 {[%clk 0:03:00.6]} 6. Qxe4 {[%clk 0:03:08.3]} 6... Qa5
{[%clk 0:03:01.6]} 7. Bc4 {[%clk 0:03:07.2]} 7... Bf5 {[%clk 0:03:01.9]} 8. Qe2
{[%clk 0:03:07.2]} 8... e6 {[%clk 0:03:01.9]} 9. O-O {[%clk 0:03:05.3]} 9... Nd7
{[%clk 0:03:00.4]} 10. d3 {[%clk 0:02:59.8]} 10... Bg4 {[%clk 0:02:58]} 11. h3
{[%clk 0:02:50.9]} 11... Bxf3 {[%clk 0:02:58.4]} 12. Qxf3 {[%clk 0:02:51.8]}
12... Ne5 {[%clk 0:02:59.7]} 13. Qe4 {[%clk 0:02:43.8]} 13... Nxc4 {[%clk
0:02:59.6]} 14. Qxc4 {[%clk 0:02:44.4]} 14... Qd5 {[%clk 0:03:00.3]} 15. Qg4
{[%clk 0:02:42.9]} 15... h5 {[%clk 0:02:59.4]} 16. Qe4 {[%clk 0:02:40.4]} 16...
Bd6 {[%clk 0:02:48.6]} 17. Be3 {[%clk 0:02:40.9]} 17... a5 {[%clk 0:02:38.5]}
18. c4 {[%clk 0:02:41.4]} 18... Qxe4 {[%clk 0:02:38.8]} 19. dxe4 {[%clk
0:02:43.3]} 19... Be5 {[%clk 0:02:35.6]} 20. Rad1 {[%clk 0:02:37]} 20... a4
{[%clk 0:02:18.9]} 21. Rd2 {[%clk 0:02:36.5]} 21... Rd8 {[%clk 0:02:12.9]} 22.
Rfd1 {[%clk 0:02:35.4]} 22... Rxd2 {[%clk 0:02:11.6]} 23. Rxd2 {[%clk
0:02:37.3]} 23... f5 {[%clk 0:01:10.4]} 24. f4 {[%clk 0:02:16.3]} 24... Bf6
{[%clk 0:01:06.5]} 25. e5 {[%clk 0:02:10.8]} 25... Be7 {[%clk 0:01:06.8]} 26.
Kf2 {[%clk 0:02:04.4]} 26... h4 {[%clk 0:00:55.8]} 27. Kf3 {[%clk 0:02:05]}
27... b5 {[%clk 0:00:48.8]} 28. b3 {[%clk 0:01:45.3]} 28... axb3 {[%clk
0:00:31]} 29. axb3 {[%clk 0:01:46.1]} 29... bxc4 {[%clk 0:00:31.6]} 30. bxc4
{[%clk 0:01:48]} 30... Kf7 {[%clk 0:00:25.7]} 31. Rd7 {[%clk 0:01:48.3]} 31...
Rd8 {[%clk 0:00:05.1]} 32. Rc7 {[%clk 0:01:46]} 32... Ke8 {[%clk 0:00:02.5]} 33.
Rxc6 {[%clk 0:01:38.6]} 33... Kf7 {[%clk 0:00:03.8]} 34. Rc7 {[%clk 0:01:39.4]}
34... Ke8 {[%clk 0:00:05.2]} 35. c5 {[%clk 0:01:32.9]} 35... Rb8 {[%clk
0:00:06.4]} 36. c6 {[%clk 0:01:32.1]} 36... Rb3 {[%clk 0:00:07.3]} 37. Ke2
{[%clk 0:01:29.7]} 37... Rb2+ {[%clk 0:00:06]} 38. Kd3 {[%clk 0:01:29.2]} 38...
Rb3+ {[%clk 0:00:06.2]} 39. Ke2 {[%clk 0:01:17.2]} 39... Rb2+ {[%clk 0:00:06.9]}
40. Kd1 {[%clk 0:01:16.4]} 40... Rb3 {[%clk 0:00:03.1]} 41. Ba7 {[%clk
0:01:12.6]} 41... g5 {[%clk 0:00:02.8]} 42. Rb7 {[%clk 0:01:02.5]} 42... Rc3
{[%clk 0:00:02.6]} 43. c7 {[%clk 0:01:03.8]} 43... Kf7 {[%clk 0:00:02.2]} 44.
Bb6 {[%clk 0:00:59.5]} 44... gxf4 {[%clk 0:00:03.1]} 45. Rb8 {[%clk 0:01:00.7]}
45... f3 {[%clk 0:00:04.3]} 46. gxf3 {[%clk 0:01:01.4]} 1-0